fUSD/lending_fUSD_20260605
["ID","MTS","AMOUNT","RATE_DAILY","PERIOD"]
[424197212,1780645845000,-150.0,0.00013813,2]
[424197214,1780645845000,-150.0,0.00013835,2]
[424197216,1780645845000,-203.55691112,0.00013836,2]
[424197219,1780645845000,-150.0,0.00013849,2]
[424197231,1780645845000,-150.0,0.00013907,2]
[424197230,1780645845000,-150.0,0.00013901,2]
[424197229,1780645845000,-150.0,0.000139,2]
[424197218,1780645845000,-150.0,0.00013847,2]
[424197220,1780645845000,-203.55691112,0.00013851,2]
[424197227,1780645845000,-150.0,0.00013887,2]
[424197228,1780645845000,-203.55691112,0.00013896,2]
[424197224,1780645845000,-150.0,0.00013879,2]
[424197223,1780645845000,-6095.32723968,0.00013872,2]
[424197225,1780645845000,-203.55691112,0.00013881,2]
[424197221,1780645845000,-150.0,0.00013857,2]
[424197285,1780645845000,-180.80928768,0.00014138,2]
[424197226,1780645845000,-150.0,0.00013882,2]
[424197233,1780645845000,-203.55691112,0.00013912,2]
[424197242,1780645845000,-719.3955471,0.0001396,2]
[424197241,1780645845000,-207764.6901878,0.00013959,2]
[424197243,1780645845000,-150.0,0.00013961,2]
[424197232,1780645845000,-150.0,0.00013907,2]
[424197234,1780645845000,-150.0,0.00013922,2]
[424197235,1780645845000,-203.55691112,0.00013927,2]
[424197244,1780645845000,-150.0,0.00013965,2]
[424197239,1780645845000,-203.55691112,0.00013957,2]
[424197275,1780645845000,-150.0,0.00014087,2]
[424197265,1780645845000,-203.55691112,0.00014048,2]
[424197284,1780645845000,-203.55691112,0.00014123,2]
[424197328,1780645845000,-203.55691112,0.0001426,2]
[424197330,1780645845000,-150.0,0.00014267,2]
[424197329,1780645845000,-150.0,0.00014263,2]
[424197342,1780645845000,-150.0,0.00014315,2]
[424197341,1780645845000,-150.0,0.00014313,2]
[424197340,1780645845000,-203.55691112,0.00014305,2]
[424197332,1780645845000,-150.0,0.0001427,2]
[424197333,1780645845000,-203.55691112,0.00014275,2]
[424197331,1780645845000,-150.0,0.00014267,2]
[424197339,1780645845000,-2000.0,0.000143,2]
[424197337,1780645845000,-150.0,0.00014291,2]
[424197336,1780645845000,-203.55691112,0.0001429,2]
[424197334,1780645845000,-150.0,0.00014276,2]
[424197335,1780645845000,-150.0,0.00014287,2]
[424197322,1780645845000,-203.55691112,0.00014229,2]
[424197338,1780645845000,-150.0,0.00014298,2]
[424197344,1780645845000,-150.0,0.00014327,2]
[424197346,1780645845000,-150.0,0.00014335,2]
[424197345,1780645845000,-150.0,0.00014327,2]
[424197347,1780645845000,-203.55691112,0.00014335,2]
[424197351,1780645845000,-150.0,0.00014356,2]
[424197354,1780645845000,-150.0,0.00014378,2]
[424197278,1780645845000,-150.0,0.00014096,2]
[424197352,1780645845000,-203.55691112,0.00014366,2]
[424197349,1780645845000,-203.55691112,0.00014351,2]
[424197350,1780645845000,-150.0,0.00014355,2]
[424197353,1780645845000,-150.0,0.00014366,2]
[424197356,1780645845000,-203.55691112,0.00014381,2]
[424197355,1780645845000,-150.0,0.00014379,2]
[424197357,1780645845000,-166.66,0.00014384,2]
[424197343,1780645845000,-203.55691112,0.0001432,2]
[424197325,1780645845000,-166.66,0.00014247,2]
[424197348,1780645845000,-150.0,0.00014338,2]
[424197327,1780645845000,-150.0,0.00014257,2]
[424197273,1780645845000,-150.0,0.00014087,2]
[424197326,1780645845000,-150.0,0.00014248,2]
[424197276,1780645845000,-150.0,0.00014087,2]
[424197286,1780645845000,-203.55691112,0.00014139,2]
[424197281,1780645845000,-166.66,0.0001411,2]
[424197282,1780645845000,-150.0,0.00014118,2]
[424197280,1780645845000,-203.55691112,0.00014108,2]
[424197283,1780645845000,-150.0,0.00014119,2]
[424197287,1780645845000,-150.0,0.00014139,2]
[424197288,1780645845000,-150.0,0.00014147,2]
[424197290,1780645845000,-203.55691112,0.00014154,2]
[424197289,1780645845000,-150.0,0.00014147,2]
[424197292,1780645845000,-150.0,0.00014161,2]
[424197297,1780645845000,-150.0,0.00014183,2]
[424197279,1780645845000,-150.0,0.00014108,2]
[424197300,1780645845000,-203.55691112,0.00014184,2]
[424197303,1780645845000,-150.0,0.00014187,2]
[424197318,1780645845000,-150.0,0.00014211,2]
[424197324,1780645845000,-203.55691112,0.00014245,2]
[424197321,1780645845000,-150.0,0.00014226,2]
[424197319,1780645845000,-203.55691112,0.00014214,2]
[424197320,1780645845000,-150.0,0.00014217,2]
[424197317,1780645845000,-150.0,0.00014207,2]
[424197315,1780645845000,-150.0,0.00014207,2]
[424197291,1780645845000,-150.0,0.00014159,2]
[424197312,1780645845000,-150.0,0.00014204,2]
[424197306,1780645845000,-150.0,0.00014198,2]
[424197323,1780645845000,-150.0,0.00014237,2]
[424197294,1780645845000,-203.55691112,0.00014169,2]
[424197309,1780645845000,-203.55691112,0.00014199,2]
[424197379,1780645846000,-203.55691112,0.00014441,2]
[424197395,1780645846000,-203.55691112,0.00014472,2]
[424197397,1780645846000,-161.81,0.0001448,2]
[424197406,1780645846000,-150.0,0.00014508,2]
[424197366,1780645846000,-2000.0,0.000144,2]
[424197400,1780645846000,-150.0,0.00014487,2]
[424197398,1780645846000,-150.0,0.00014487,2]
[424197405,1780645846000,-150.0,0.00014507,2]
[424197407,1780645846000,-150.0,0.00014513,2]
[424197399,1780645846000,-150.0,0.00014487,2]
[424197408,1780645846000,-203.55691112,0.00014517,2]
[424197403,1780645846000,-203.55691112,0.00014502,2]
[424197401,1780645846000,-203.55691112,0.00014487,2]
[424197404,1780645846000,-150.0,0.00014507,2]
[424197409,1780645846000,-150.0,0.00014521,2]
[424197423,1780645846000,-150.0,0.00014567,2]
[424197419,1780645846000,-6453.0,0.00014557,2]
[424197420,1780645846000,-203.55691112,0.00014562,2]
[424197422,1780645846000,-150.0,0.00014567,2]
[424197424,1780645846000,-150.0,0.00014573,2]
[424197386,1780645846000,-203.55691112,0.00014456,2]
[424197411,1780645846000,-150.0,0.0001453,2]
[424197402,1780645846000,-150.0,0.000145,2]
[424197378,1780645846000,-150.0,0.00014434,2]
[424197368,1780645846000,-2000.0,0.000144,2]
[424197383,1780645846000,-150.0,0.00014447,2]
[424197413,1780645846000,-203.55691112,0.00014532,2]
[424197359,1780645846000,-150.0,0.00014387,2]
[424197358,1780645846000,-6095.32723968,0.00014386,2]
[424197361,1780645846000,-150.0,0.00014387,2]
[424197363,1780645846000,-1252.0,0.00014393,2]
[424197365,1780645846000,-150.0,0.000144,2]
[424197364,1780645846000,-203.55691112,0.00014396,2]
[424197362,1780645846000,-150.0,0.00014387,2]
[424197360,1780645846000,-150.0,0.00014387,2]
[424197367,1780645846000,-2000.0,0.000144,2]
[424197369,1780645846000,-2000.0,0.000144,2]
[424197370,1780645846000,-3324.0,0.000144,2]
[424197371,1780645846000,-2000.0,0.000144,2]
[424197372,1780645846000,-2000.0,0.000144,2]
[424197373,1780645846000,-203.55691112,0.00014411,2]
[424197375,1780645846000,-150.0,0.00014419,2]
[424197374,1780645846000,-150.0,0.00014418,2]
[424197377,1780645846000,-203.55691112,0.00014426,2]
[424197388,1780645846000,-150.0,0.0001446,2]
[424197390,1780645846000,-150.0,0.00014465,2]
[424197381,1780645846000,-150.0,0.00014447,2]
[424197380,1780645846000,-150.0,0.00014443,2]
[424197376,1780645846000,-150.0,0.00014422,2]
[424197392,1780645846000,-150.0,0.0001447,2]
[424197418,1780645846000,-150.0,0.00014552,2]
[424197438,1780645846000,-150.0,0.00014627,2]
[424197417,1780645846000,-203.55691112,0.00014547,2]
[424197454,1780645846000,-150.0,0.00014687,2]
[424197455,1780645846000,-150.0,0.00014687,2]
[424197452,1780645846000,-150.0,0.00014687,2]
[424197458,1780645846000,-150.0,0.00014703,2]
[424197460,1780645846000,-983.8172031,0.00014706,2]
[424197457,1780645846000,-200.0,0.000147,5]
[424197459,1780645846000,-150.0,0.00014704,2]
[424197461,1780645846000,-203.55691112,0.00014714,2]
[424197463,1780645846000,-150.0,0.00014728,2]
[424197472,1780645846000,-46358.5685948,0.0001476,2]
[424197451,1780645846000,-203.55691112,0.00014684,2]
[424197466,1780645846000,-203.55691112,0.00014744,2]
[424197464,1780645846000,-203.55691112,0.00014729,2]
[424197467,1780645846000,-150.0,0.00014747,2]
[424197465,1780645846000,-150.0,0.00014743,2]
[424197469,1780645846000,-150.0,0.00014747,2]
[424197471,1780645846000,-203.55691112,0.00014759,2]
[424197468,1780645846000,-150.0,0.00014747,2]
[424197470,1780645846000,-150.0,0.0001475,2]
[424197474,1780645846000,-150.0,0.00014769,2]
[424197473,1780645846000,-160.5188436,0.0001476,2]
[424197415,1780645846000,-150.0,0.00014541,2]
[424197462,1780645846000,-150.0,0.00014726,2]
[424197453,1780645846000,-150.0,0.00014687,2]
[424197456,1780645846000,-203.55691112,0.00014699,2]
[424197448,1780645846000,-150.0,0.00014671,2]
[424197447,1780645846000,-203.55691112,0.00014668,2]
[424197427,1780645846000,-150.0,0.00014581,2]
[424197426,1780645846000,-203.55691112,0.00014578,2]
[424197436,1780645846000,-203.55691112,0.00014623,2]
[424197429,1780645846000,-150.0,0.00014592,2]
[424197437,1780645846000,-150.0,0.00014625,2]
[424197430,1780645846000,-203.55691112,0.00014593,2]
[424197428,1780645846000,-150.0,0.00014587,2]
[424197432,1780645846000,-200.0,0.000146,5]
[424197435,1780645846000,-150.0,0.00014622,2]
[424197433,1780645846000,-203.55691112,0.00014608,2]
[424197425,1780645846000,-150.0,0.00014574,2]
[424197434,1780645846000,-150.0,0.00014617,2]
[424197431,1780645846000,-150.0,0.00014595,2]
[424197446,1780645846000,-150.0,0.00014662,2]
[424197440,1780645846000,-1068.11,0.00014635,2]
[424197443,1780645846000,-150.0,0.00014639,2]
[424197445,1780645846000,-150.0,0.00014661,2]
[424197441,1780645846000,-1555.5,0.00014635,2]
[424197442,1780645846000,-203.55691112,0.00014638,2]
[424197450,1780645846000,-150.0,0.00014682,2]
[424197439,1780645846000,-150.0,0.00014627,2]
[424197449,1780645846000,-150.0,0.00014676,2]
[424197444,1780645846000,-203.55691112,0.00014653,2]
[424197505,1780645847000,-21049.60487424,0.000149,3]
[424197495,1780645847000,-203.55691112,0.00014865,2]
[424197490,1780645847000,-150.0,0.00014834,2]
[424197498,1780645847000,-150.0,0.00014878,2]
[424197506,1780645847000,-180.80928768,0.000149,2]
[424197499,1780645847000,-203.55691112,0.0001488,2]
[424197507,1780645847000,-200.0,0.000149,5]
[424197504,1780645847000,-7188.43639549,0.000149,3]
[424197508,1780645847000,-6095.32723968,0.000149,2]
[424197492,1780645847000,-203.55691112,0.0001485,2]
[424197500,1780645847000,-150.0,0.00014883,2]
[424197501,1780645847000,-150.0,0.00014886,2]
[424197497,1780645847000,-150.0,0.00014866,2]
[424197496,1780645847000,-150.0,0.00014866,2]
[424197488,1780645847000,-150.0,0.00014829,2]
[424197493,1780645847000,-150.0,0.00014856,2]
[424197484,1780645847000,-150.0,0.00014806,2]
[424197475,1780645847000,-203.55691112,0.00014774,2]
[424197483,1780645847000,-150.0,0.00014806,2]
[424197477,1780645847000,-150.0,0.00014784,2]
[424197476,1780645847000,-150.0,0.0001478,2]
[424197503,1780645847000,-150.0,0.00014899,2]
[424197486,1780645847000,-203.55691112,0.0001482,2]
[424197479,1780645847000,-203.55691112,0.0001479,2]
[424197478,1780645847000,-150.0,0.00014786,2]
[424197481,1780645847000,-200.0,0.000148,5]
[424197487,1780645847000,-150.0,0.00014824,2]
[424197485,1780645847000,-150.0,0.00014813,2]
[424197491,1780645847000,-203.55691112,0.00014835,2]
[424197489,1780645847000,-150.0,0.00014831,2]
[424197480,1780645847000,-150.0,0.00014791,2]
[424197482,1780645847000,-203.55691112,0.00014805,2]
[424197494,1780645847000,-150.0,0.00014865,2]
[424197511,1780645847000,-150.0,0.00014905,2]
[424197522,1780645847000,-150.0,0.00014965,2]
[424197527,1780645847000,-150.0,0.00014986,2]
[424197526,1780645847000,-150.0,0.00014986,2]
[424197528,1780645847000,-153.80809804,0.00014986,2]
[424197533,1780645847000,-150.32951387,0.00014986,2]
[424197535,1780645847000,-150.0,0.00014986,2]
[424197523,1780645847000,-203.55691112,0.00014971,2]
[424197537,1780645847000,-1000.0,0.0001499,2]
[424197538,1780645847000,-1000.0,0.0001499,2]
[424197534,1780645847000,-150.0,0.00014986,2]
[424197539,1780645847000,-250.0,0.0001499,2]
[424197541,1780645847000,-11592.37203565,0.0001499,2]
[424197540,1780645847000,-783.06991654,0.0001499,2]
[424197509,1780645847000,-250.0319068,0.000149,2]
[424197536,1780645847000,-203.55691112,0.00014986,2]
[424197520,1780645847000,-150.0,0.00014946,2]
[424197502,1780645847000,-203.55691112,0.00014895,2]
[424197531,1780645847000,-150.0,0.00014986,2]
[424197512,1780645847000,-203.55691112,0.00014911,2]
[424197525,1780645847000,-150.0,0.00014986,2]
[424197519,1780645847000,-150.0,0.00014943,2]
[424197514,1780645847000,-203.55691112,0.00014926,2]
[424197518,1780645847000,-203.55691112,0.00014941,2]
[424197510,1780645847000,-2000.0,0.000149,2]
[424197513,1780645847000,-150.0,0.00014921,2]
[424197515,1780645847000,-150.0,0.00014926,2]
[424197517,1780645847000,-150.0,0.00014935,2]
[424197521,1780645847000,-203.55691112,0.00014956,2]
[424197530,1780645847000,-279.63657692,0.00014986,2]
[424197529,1780645847000,-150.0,0.00014986,2]
[424197532,1780645847000,-150.0,0.00014986,2]
[424197524,1780645847000,-150.24681016,0.00014986,2]
[424197516,1780645847000,-150.0,0.00014926,2]
[424197543,1780645848000,-5552.57823706,0.0001499,2]
[424197542,1780645848000,-501.40437197,0.0001499,2]
[424197545,1780645849000,-499.94641419,0.00010762,2]
[424197546,1780645849000,-230.72160255,0.0001499,2]
[424197544,1780645849000,-0.05358581,0.00010762,2]
[424197548,1780645849000,-5008.15079619,0.000109,2]
[424197549,1780645849000,-204.08142839,0.00011036,2]
[424197550,1780645849000,-5637.94417546,0.0001499,2]
[424197547,1780645849000,-167.89023161,0.000107,2]
[424197551,1780645850000,-2802.62800369,0.0001499,2]
[424197552,1780645850000,-396.67543,0.0001499,2]
[424197553,1780645850000,-590.75782011,0.0001499,2]
[424197555,1780645850000,-10241.21882095,0.0001499,2]
[424197554,1780645850000,-7372.54260446,0.0001499,2]
[424197558,1780645850000,-307.54965606,0.00014999,2]
[424197557,1780645850000,-681.07442116,0.00014999,2]
[424197560,1780645850000,-300.0,0.00014999,2]
[424197559,1780645850000,-228.337412,0.00014999,2]
[424197563,1780645850000,-621.42937521,0.00015,2]
[424197561,1780645850000,-666.0,0.00014999,2]
[424197556,1780645850000,-2561.55823071,0.00014999,2]
[424197564,1780645850000,-10499.12040006,0.00015,2]
[424197562,1780645850000,-78343.63193874,0.00015,2]
[424197575,1780645850000,-4923.16870641,0.00015,2]
[424197574,1780645850000,-5008.15079619,0.00011514,2]
[424197572,1780645850000,-712.37563959,0.00015,2]
[424197570,1780645850000,-998.05978867,0.00015,2]
[424197571,1780645850000,-751260.23796715,0.00015,2]
[424197568,1780645850000,-180.9789065,0.000149,2]
[424197569,1780645850000,-2003.90613709,0.00015,2]
[424197567,1780645850000,-206.654635,0.0001368,2]
[424197573,1780645850000,-735.84,0.00015,2]
[424197566,1780645850000,-250.0,0.00011644,2]
[424197565,1780645850000,-16.80418209,0.00015,2]
[424197576,1780645895000,-150.0,0.00011098,2]
[424197577,1780645910000,-4000.0,0.0001026,2]
[424197578,1780645927000,-500.0,0.0001026,2]
[424197587,1780645942000,-3287.76086766,0.0001026,2]
[424197586,1780645942000,-563.78596981,0.0001026,2]
[424197583,1780645942000,-2115.47970339,0.0001026,2]
[424197584,1780645942000,-3695.13230989,0.0001026,2]
[424197582,1780645942000,-3695.13230989,0.0001026,2]
[424197580,1780645942000,-402.65396274,0.0001026,2]
[424197581,1780645942000,-3695.13230989,0.0001026,2]
[424197579,1780645942000,-169.89500106,9.04e-05,2]
[424197588,1780645942000,-500.0,0.0001026,2]
[424197585,1780645942000,-3695.13230989,0.0001026,2]
[424197589,1780645972000,-500.0,0.00010229,2]
[424197590,1780646004000,-500.0,0.00010229,2]
[424197591,1780646005000,-500.0,0.00010229,2]
[424197592,1780646020000,-157.05673654,0.00010178,2]
[424197593,1780646020000,-342.94326346,0.00010229,2]
[424197597,1780646021000,-38.0,0.00010226,2]
[424197596,1780646021000,-151.0,0.00010226,2]
[424197595,1780646021000,-151.0,0.00010226,2]
[424197594,1780646021000,-160.0,9.04e-05,2]
[424197599,1780646051000,-113.0,0.00010024,2]
[424197601,1780646066000,-2.847,0.00010024,2]
[424197600,1780646066000,-497.153,0.00010024,2]
[424197605,1780646067000,-38.42,0.00010227,2]
[424197603,1780646067000,-150.0,0.00010123,2]
[424197602,1780646067000,-195.733,0.00010024,2]
[424197604,1780646067000,-113.0,0.00010226,2]
[424197606,1780646090000,-334.50799591,0.0001,2]
[424197607,1780646091000,161.01,0.00028767,120]
[424197609,1780646142000,-304.37217055,0.0001,2]
[424197611,1780646250000,612.88,0.00030082,120]
[424197613,1780646394000,150.0,0.00011233,120]
[424197612,1780646394000,-178.22493594,9.32e-05,2]
[424197614,1780646405000,2837.0,0.0001196,5]
[424197615,1780646415000,152.0,0.00011094,7]
[424197616,1780646448000,-380.41144562,9.32e-05,2]
[424197617,1780646501000,-500.0,9.333e-05,2]
[424197618,1780646517000,-500.0,9.289e-05,2]
[424197621,1780646533000,152.0,0.00019897,30]
[424197620,1780646533000,152.0,0.00011094,7]
[424197619,1780646533000,-500.0,9.289e-05,2]
[424197622,1780646548000,-500.0,9.289e-05,2]
[424197623,1780646567000,-500.0,9.289e-05,2]
[424197624,1780646583000,-500.0,9.289e-05,2]
[424197626,1780646600000,-500.0,9.289e-05,2]
[424197627,1780646616000,-500.0,9.094e-05,2]
[424197633,1780646680000,-150.0,9.331e-05,2]
[424197629,1780646680000,-334.37,9.289e-05,2]
[424197630,1780646680000,-250.0,9.3e-05,2]
[424197632,1780646680000,-250.0,9.319e-05,2]
[424197635,1780646680000,-172.44851704,9.331e-05,2]
[424197631,1780646680000,-500.0,9.311e-05,2]
[424197628,1780646680000,-500.0,9.094e-05,2]
[424197636,1780646680000,-500.0,9.331e-05,2]
[424197641,1780646680000,-500.0,9.331e-05,2]
[424197642,1780646680000,-2.96255469,9.331e-05,2]
[424197639,1780646680000,-291.66621264,9.331e-05,2]
[424197634,1780646680000,-500.0,9.331e-05,2]
[424197640,1780646680000,-598.82055472,9.331e-05,2]
[424197637,1780646680000,-188.87561462,9.331e-05,2]
[424197638,1780646680000,-260.85654629,9.331e-05,2]
[424197645,1780646681000,-500.0,9.331e-05,2]
[424197644,1780646681000,-500.0,9.331e-05,2]
[424197643,1780646681000,-367.55359404,9.331e-05,2]
[424197647,1780646682000,-500.0,9.331e-05,2]
[424197646,1780646682000,-500.0,9.331e-05,2]
[424197649,1780646682000,-500.0,9.331e-05,2]
[424197651,1780646682000,-500.0,9.331e-05,2]
[424197650,1780646682000,-500.0,9.331e-05,2]
[424197653,1780646682000,-404.04649876,9.331e-05,2]
[424197648,1780646682000,-228.3999072,9.331e-05,2]
[424197652,1780646682000,-500.0,9.331e-05,2]
[424197657,1780646683000,-500.0,9.331e-05,2]
[424197655,1780646683000,-500.0,9.331e-05,2]
[424197654,1780646683000,-95.95350124,9.331e-05,2]
[424197656,1780646683000,-500.0,9.331e-05,2]
[424197659,1780646683000,-500.0,9.331e-05,2]
[424197660,1780646683000,-500.0,9.331e-05,2]
[424197662,1780646683000,-500.0,9.331e-05,2]
[424197661,1780646683000,-500.0,9.331e-05,2]
[424197663,1780646683000,-500.0,9.331e-05,2]
[424197664,1780646683000,-404.04649876,9.331e-05,2]
[424197658,1780646683000,-500.0,9.331e-05,2]
[424197665,1780646684000,-95.95350124,9.331e-05,2]
[424197666,1780646684000,-500.0,9.331e-05,2]
[424197667,1780646684000,-500.0,9.331e-05,2]
[424197668,1780646684000,-500.0,9.331e-05,2]
[424197669,1780646684000,-500.0,9.331e-05,2]
[424197671,1780646684000,-500.0,9.331e-05,2]
[424197673,1780646684000,-500.0,9.331e-05,2]
[424197672,1780646684000,-500.0,9.331e-05,2]
[424197674,1780646684000,-359.38884393,9.331e-05,2]
[424197675,1780646684000,-500.0,9.331e-05,2]
[424197676,1780646684000,-44.65765483,9.331e-05,2]
[424197670,1780646684000,-500.0,9.331e-05,2]
[424197679,1780646685000,-500.0,9.331e-05,2]
[424197680,1780646685000,-3544.65765483,9.333e-05,2]
[424197677,1780646685000,-455.34234517,9.331e-05,2]
[424197678,1780646685000,-500.0,9.331e-05,2]
[424197684,1780646686000,-166.66,9.515e-05,2]
[424197683,1780646686000,-500.0,9.429e-05,2]
[424197685,1780646686000,-1923.43,9.678e-05,2]
[424197681,1780646686000,-917.90234517,9.333e-05,2]
[424197686,1780646686000,-500.0,9.703e-05,2]
[424197689,1780646686000,-506.95666883,9.901e-05,2]
[424197687,1780646686000,-164.7,9.707e-05,2]
[424197688,1780646686000,-166.66,9.83e-05,2]
[424197682,1780646686000,-153.690986,9.429e-05,2]
[424197690,1780646687000,-847.47333117,9.901e-05,2]
[424197691,1780646687000,-160.55,9.969e-05,2]
[424197692,1780646714000,-500.0,9.331e-05,2]
[424197694,1780646714000,-500.0,9.331e-05,2]
[424197693,1780646714000,-500.0,9.331e-05,2]
[424197695,1780646714000,-500.0,9.331e-05,2]
[424197697,1780646714000,-500.0,9.331e-05,2]
[424197698,1780646714000,-500.0,9.331e-05,2]
[424197699,1780646714000,-500.0,9.331e-05,2]
[424197700,1780646714000,-645.48764933,9.331e-05,2]
[424197701,1780646714000,-354.51235067,9.331e-05,2]
[424197696,1780646714000,-500.0,9.331e-05,2]
[424197705,1780646715000,-500.0,9.331e-05,2]
[424197702,1780646715000,-145.48764933,9.331e-05,2]
[424197703,1780646715000,-500.0,9.331e-05,2]
[424197707,1780646715000,-500.0,9.331e-05,2]
[424197704,1780646715000,-500.0,9.331e-05,2]
[424197709,1780646715000,-500.0,9.331e-05,2]
[424197706,1780646715000,-500.0,9.331e-05,2]
[424197710,1780646715000,-500.0,9.331e-05,2]
[424197712,1780646715000,-354.51235067,9.331e-05,2]
[424197711,1780646715000,-500.0,9.331e-05,2]
[424197708,1780646715000,-500.0,9.331e-05,2]
[424197714,1780646716000,-500.0,9.331e-05,2]
[424197713,1780646716000,-145.48764933,9.331e-05,2]
[424197715,1780646765000,-150.0,9.727e-05,2]
[424197716,1780646793000,1151.59,0.00030137,120]
[424197717,1780646812000,152.0,0.00011108,7]
[424197719,1780646830000,-370.27492147,9.331e-05,2]
[424197718,1780646830000,-500.0,9.331e-05,2]
[424197720,1780646848000,22.26173498,8.1e-05,2]
[424197721,1780646848000,127.73826502,8.1e-05,2]
[424197722,1780646871000,200.0,0.0002244,30]
[424197723,1780646876000,200.0,0.0002244,30]
[424197724,1780646881000,200.0,0.0002244,30]
[424197725,1780646886000,200.0,0.0002244,30]
[424197726,1780646891000,200.0,0.0002244,30]
[424197727,1780646896000,222.68976191,0.0002244,30]
[424197728,1780646940000,2000.0,0.00030136,120]
[424197730,1780646950000,-500.0,9.29e-05,2]
[424197729,1780646950000,-992.1525576,9.29e-05,2]
[424197732,1780646971000,-2117.19,9.29e-05,2]
[424197731,1780646971000,-294.81,9.191e-05,2]
[424197733,1780646986000,-572.2074424,9.29e-05,2]
[424197736,1780646986000,-100.1269828,9.672e-05,2]
[424197734,1780646986000,-200.0,9.316e-05,2]
[424197735,1780646986000,-860.6655748,9.407e-05,2]
[424197737,1780647009000,-399.8730172,9.672e-05,2]
[424197738,1780647013000,2470.0,0.00011716,5]
[424197742,1780647031000,-48201.54,9.929e-05,2]
[424197741,1780647031000,-300.0,9.928e-05,2]
[424197740,1780647031000,-1200.0,9.928e-05,2]
[424197739,1780647031000,-298.46,9.481e-05,2]
[424197755,1780647032000,-525.79675041,9.929e-05,2]
[424197754,1780647032000,-824.83,9.929e-05,2]
[424197757,1780647032000,-413966.83259658,9.929e-05,2]
[424197758,1780647032000,-82853.98769914,9.929e-05,2]
[424197760,1780647032000,-77148.57433778,9.929e-05,2]
[424197759,1780647032000,-7185.90506116,9.929e-05,2]
[424197756,1780647032000,-4667.31855558,9.929e-05,2]
[424197763,1780647033000,-485.4185,9.929e-05,2]
[424197761,1780647033000,-1254.41808677,9.929e-05,2]
[424197762,1780647033000,-1482.28422149,9.929e-05,2]
[424197764,1780647033000,-348.50366075,9.929e-05,2]
[424197765,1780647033000,-492.41777302,9.929e-05,2]
[424197766,1780647033000,-3298.0346975,9.929e-05,2]
[424197769,1780647033000,-4116.16186065,9.929e-05,2]
[424197768,1780647033000,-552.0,9.929e-05,2]
[424197770,1780647033000,-1190.69306236,9.929e-05,2]
[424197780,1780647033000,-50000.0,9.929e-05,2]
[424197767,1780647033000,-5533.0,9.929e-05,2]
[424197804,1780647038000,-459.86242947,9.928e-05,2]
[424197811,1780647038000,-524.76573921,9.929e-05,2]
[424197810,1780647038000,-259.19244503,9.928e-05,2]
[424197806,1780647038000,-279.9003135,9.928e-05,2]
[424197807,1780647038000,-500.0,9.928e-05,2]
[424197809,1780647038000,-277.82954342,9.928e-05,2]
[424197812,1780647038000,-452.91970207,9.929e-05,2]
[424197808,1780647038000,-269.17438831,9.928e-05,2]
[424197813,1780647038000,-5096.0947088,9.929e-05,2]
[424197815,1780647038000,-50000.0,9.929e-05,2]
[424197816,1780647038000,-6539.71935636,9.929e-05,2]
[424197814,1780647038000,-28498.97914613,9.929e-05,2]
[424197817,1780647038000,-1428.77227403,9.929e-05,2]
[424197821,1780647038000,-526.50344134,9.929e-05,2]
[424197818,1780647038000,-759.72016253,9.929e-05,2]
[424197805,1780647038000,-40.13757053,9.928e-05,2]
[424197929,1780647039000,-50000.0,9.929e-05,2]
[424197958,1780647040000,-4000.0,0.00010027,2]
[424197959,1780647040000,-150.0,0.00010028,2]
[424197960,1780647040000,-1687.09666637,0.00010028,2]
[424197956,1780647040000,-758.96739485,0.0001,2]
[424197957,1780647040000,-300.0,0.00010027,2]